bitfinex/quotes_SOLUSD_20251031
["timestamp","ask_amount","ask_price","bid_price","bid_amount"]
[1761927297345,3.92204932,187.96,187.93,5.3211302]
[1761927297547,0.68,187.96,187.93,5.3211302]
[1761927297742,0.68,187.95,187.93,5.3211302]
[1761927298284,0.68,187.95,187.92,5.32140881]
[1761927298465,3.92247056,187.94,187.89,5.32226302]
[1761927298766,7.24033908,187.93,187.89,5.32226302]
[1761927298976,3.92207793,187.92,187.89,5.32226302]
[1761927299268,3.31826115,187.94,187.89,5.32226302]
[1761927299466,0.68,187.95,187.89,5.32226302]
[1761927299467,7.9215546,187.93,187.89,5.32226302]
[1761927299647,3.92329345,187.92,187.89,5.32226302]
[1761927299852,0.68,187.92,187.89,5.32226302]
[1761927300037,3.92279065,187.91,187.89,5.32226302]
[1761927300240,0.68,187.92,187.89,5.32226302]
[1761927300447,3.53087391,187.96,187.91,3.31826115]
[1761927300448,0.68,187.96,187.91,3.31826115]
[1761927300658,3.92457914,187.95,187.92,5.32141336]
[1761927300958,0.68,187.96,187.92,5.32141336]
[1761927301175,25.9114833,187.99,187.88,1.31]
[1761927301176,3.31826115,187.94,187.88,14.106064]
[1761927301348,4.60607525,187.93,187.89,5.32226302]
[1761927301663,0.68,187.93,187.89,5.32226302]
[1761927301845,4.60641098,187.92,187.89,5.32226302]
[1761927302052,0.68,187.92,187.89,5.32226302]
[1761927302251,3.31826115,187.94,187.89,5.32226302]
[1761927302458,0.68,187.91,187.89,5.32226302]
[1761927302865,0.68,187.94,187.89,8.64052417]
[1761927303167,4.60662312,187.93,187.89,5.32226302]
[1761927303356,4.60662312,187.93,187.88,4.11826115]
[1761927303357,7.24488427,187.92,187.88,0.8]
[1761927303543,7.92488427,187.91,187.88,0.8]
[1761927303744,3.92662312,187.9,187.88,0.8]
[1761927303972,7.24552118,187.89,187.88,0.8]
[1761927304173,7.24552118,187.89,187.85,0.1]
[1761927304174,7.92552118,187.89,187.85,0.1]
[1761927304471,23.91026115,187.92,187.85,0.1]
[1761927304472,3.31826115,187.86,187.85,0.1]
[1761927304769,7.24552118,187.86,187.85,0.1]
[1761927304952,13.25863413,187.86,187.85,0.1]
[1761927306564,7.93552118,187.86,187.85,0.1]
[1761927307172,4.61726003,187.86,187.85,0.1]
[1761927307547,7.93552118,187.86,187.85,0.1]
[1761927307755,13.25863413,187.86,187.85,0.1]
[1761927308559,13.24888424,187.86,187.85,0.1]
[1761927309364,7.92577129,187.86,187.85,0.1]
[1761927310562,13.24888424,187.86,187.85,0.1]
[1761927311878,7.92577129,187.86,187.85,0.1]
[1761927313550,13.24297917,187.86,187.85,0.1]
[1761927313751,7.91986622,187.86,187.85,0.1]
[1761927314174,13.24297917,187.86,187.85,0.1]
[1761927314562,8.20418936,187.86,187.85,0.1]
[1761927314759,4.00826115,187.86,187.85,0.1]
[1761927314966,3.31826115,187.86,187.85,0.1]
[1761927315167,4.02826115,187.88,187.85,0.1]
[1761927315364,24.62026115,187.88,187.85,0.1]
[1761927315761,4.02826115,187.87,187.85,0.1]
[1761927315965,7.93800014,187.87,187.85,0.1]
[1761927316170,0.71,187.87,187.85,5.42336912]
[1761927316581,21.302,187.88,187.85,5.42336912]
[1761927316780,0.71,187.93,187.87,3.31826115]
[1761927316982,4.02826115,187.93,187.87,4.00826115]
[1761927317187,3.31826115,187.91,187.85,22.74012108]
[1761927317498,3.31826115,187.86,187.85,0.1]
[1761927317859,3.31826115,187.87,187.85,0.1]
[1761927318187,4.02826115,187.88,187.85,0.1]
[1761927318557,0.71,187.87,187.85,0.1]
[1761927318879,4.02826115,187.87,187.85,0.1]
[1761927319680,10.92,187.86,187.85,0.1]
[1761927320488,11.63,187.86,187.85,0.1]
[1761927320856,14.94826115,187.86,187.85,0.1]
[1761927321162,20.2713741,187.86,187.85,0.1]
[1761927321783,14.94826115,187.86,187.85,0.1]
[1761927322660,10.92,187.86,187.85,0.1]
[1761927324585,10.92,187.86,187.85,6.13339632]
[1761927324791,10.92,187.86,187.85,0.1]
[1761927325785,11.58,187.86,187.85,0.1]
[1761927325986,14.89826115,187.86,187.85,0.1]
[1761927326487,10.92,187.86,187.85,0.1]
[1761927326672,11.58,187.86,187.85,0.1]
[1761927326879,14.89826115,187.86,187.85,0.1]
[1761927327276,20.50569724,187.86,187.85,0.1]
[1761927327572,24.41220239,187.86,187.85,0.1]
[1761927328978,24.41204897,187.86,187.85,0.1]
[1761927329896,19.08893602,187.86,187.85,0.1]
[1761927330100,18.14461288,187.86,187.85,0.1]
[1761927330295,10.92,187.86,187.85,0.1]
[1761927330503,11.58,187.86,187.85,0.1]
[1761927330804,14.23826115,187.86,187.85,0.1]
[1761927331002,10.92,187.86,187.85,0.1]
[1761927331502,14.89826115,187.86,187.85,0.1]
[1761927331889,20.2213741,187.86,187.85,0.1]
[1761927332100,14.23826115,187.86,187.85,0.1]
[1761927332300,14.89826115,187.86,187.85,0.1]
[1761927332999,20.2213741,187.86,187.85,0.1]
[1761927333315,24.13258972,187.86,187.85,0.1]
[1761927334516,58.31799384,187.86,187.85,0.1]
[1761927336513,102.2,187.84,187.8,0.1]
[1761927336718,71.62577623,187.86,187.8,0.1]
[1761927336719,3.31826115,187.81,187.8,0.1]
[1761927336922,18.14947677,187.81,187.8,0.1]
[1761927337414,18.84947677,187.81,187.8,0.1]
[1761927337790,18.14947677,187.81,187.8,0.1]
[1761927338604,24.17400688,187.81,187.8,0.1]
[1761927339220,20.85915566,187.81,187.8,0.1]
[1761927339424,24.17741681,187.81,187.8,0.1]
[1761927341992,27.98960634,187.81,187.8,0.1]
[1761927342196,34.46017288,187.81,187.8,0.1]
[1761927342393,37.77843403,187.81,187.8,0.1]
[1761927343008,58.37043403,187.81,187.8,0.1]
[1761927343221,37.77843403,187.81,187.8,0.1]
[1761927343606,10.07315083,187.8,187.79,0.1]
[1761927343804,18.21564277,187.8,187.79,0.1]
[1761927344020,31.35275309,187.8,187.79,0.1]
[1761927344224,3.91462555,187.8,187.79,0.1]
[1761927344429,3.91462555,187.8,187.79,0.81]
[1761927345121,3.91462555,187.8,187.79,0.1]
[1761927345308,3.91462555,187.8,187.79,0.81]
[1761927346403,3.91462555,187.8,187.79,0.1]
[1761927348134,3.91462555,187.8,187.79,0.81]
[1761927348315,3.91462555,187.8,187.79,6.13509718]
[1761927348518,3.91462555,187.8,187.79,0.81]
[1761927349015,3.91462555,187.8,187.79,0.1]
[1761927349908,9.93943918,187.8,187.79,0.1]
[1761927350113,9.34307478,187.8,187.79,0.1]
[1761927350323,13.27085092,187.8,187.79,0.1]
[1761927350605,12.57085092,187.8,187.79,0.1]
[1761927350852,14.23826115,187.81,187.79,0.1]
[1761927351014,5.32481363,187.8,187.79,0.1]
[1761927351832,9.34307478,187.8,187.79,0.1]
[1761927352033,19.41622561,187.8,187.79,0.1]
[1761927352224,32.56020582,187.8,187.79,0.1]
[1761927352608,22.9507694,187.8,187.79,0.1]
[1761927353716,9.78882769,187.76,187.7,0.1]
[1761927353914,3.60258429,187.71,187.7,0.1]
[1761927354123,10.92,187.71,187.7,0.1]
[1761927354324,14.23826115,187.71,187.7,0.1]
[1761927355326,19.56562783,187.71,187.7,0.1]
[1761927355545,14.23826115,187.71,187.7,0.1]
[1761927356043,19.56562783,187.71,187.7,0.1]
[1761927356538,30.33877866,187.71,187.7,0.1]
[1761927356737,34.62995154,187.71,187.7,0.1]
[1761927356941,30.33877866,187.71,187.7,0.1]
[1761927357445,33.07019067,187.71,187.7,0.1]
[1761927360221,41.04212656,187.71,187.7,0.1]
[1761927360429,10.92,187.71,187.7,0.1]
[1761927360640,13.05123642,187.71,187.7,0.1]
[1761927360945,37.55021134,187.71,187.7,0.1]
[1761927361121,40.7463416,187.71,187.7,0.1]
[1761927361444,42.87757802,187.71,187.7,0.1]
[1761927361748,38.9706031,187.71,187.7,0.1]
[1761927362054,10.92,187.71,187.7,0.81]
[1761927362532,10.92,187.71,187.7,8.26888692]
[1761927363551,10.92,187.71,187.7,6.22985035]
[1761927363720,10.92,187.71,187.7,11.55750085]
[1761927363921,10.92,187.71,187.7,21.34632854]
[1761927364733,10.92,187.71,187.7,11.55750085]
[1761927366550,10.92,187.71,187.7,21.34632854]
[1761927367926,10.92,187.71,187.7,21.63065168]
[1761927368247,10.92,187.71,187.7,6.22985035]
[1761927368451,10.92,187.71,187.7,11.55750085]
[1761927372424,10.92,187.71,187.7,21.34632854]
[1761927373252,10.92,187.71,187.7,21.63065168]
[1761927374443,10.92,187.71,187.7,16.21080133]
[1761927374643,10.92,187.71,187.7,21.63065168]
[1761927375631,10.92,187.71,187.7,21.34632854]
[1761927376233,10.92,187.71,187.7,21.63065168]
[1761927377664,102.3,187.78,187.75,9.78882769]
[1761927377964,11.43382481,187.83,187.76,0.7]
[1761927378140,3.91549438,187.82,187.77,5.41985035]
[1761927378335,3.91549438,187.81,187.76,6.11985035]
[1761927378663,5.41985035,187.78,187.73,6.02675907]
[1761927378868,6.01455131,187.81,187.71,5.41985035]
[1761927378869,10.02534473,187.77,187.71,5.41985035]
[1761927379043,3.91549438,187.76,187.71,5.41985035]
[1761927379355,3.91549438,187.76,187.7,5.51985035]
[1761927379356,9.33667642,187.75,187.7,5.51985035]
[1761927379564,9.33667642,187.75,187.7,0.1]
[1761927379565,3.91682607,187.74,187.7,0.1]
[1761927379751,6.10985035,187.75,187.7,0.1]
[1761927379933,3.91633891,187.74,187.7,0.8]
[1761927380136,6.10985035,187.75,187.7,0.8]
[1761927380468,3.91755956,187.74,187.7,6.12756454]
[1761927380671,102.3,187.77,187.72,5.41985035]
[1761927380972,3.91862952,187.76,187.71,6.11985035]
[1761927381152,3.91862952,187.75,187.71,0.7]
[1761927381349,3.91862952,187.74,187.71,6.11985035]
[1761927381671,6.10985035,187.76,187.71,6.11985035]
[1761927381672,0.69,187.76,187.71,6.11985035]
[1761927381849,3.92027247,187.75,187.71,6.11985035]
[1761927382045,3.92027247,187.74,187.72,6.11985035]
[1761927382360,107.71985035,187.77,187.7,19.4466908]
[1761927382544,5.41985035,187.75,187.7,5.42756454]
[1761927382744,9.34080341,187.74,187.7,5.42756454]
[1761927382962,0.69,187.76,187.7,5.42756454]
[1761927382963,5.41985035,187.75,187.7,5.42756454]
[1761927383166,3.92075364,187.74,187.7,10.84741489]
[1761927383464,3.92075364,187.73,187.7,10.84741489]
[1761927383673,6.10985035,187.76,187.7,10.84741489]
[1761927383853,106.22109658,187.75,187.7,10.84741489]
[1761927384164,3.92109658,187.74,187.71,5.41985035]
[1761927384364,3.92109658,187.73,187.72,0.67]
[1761927384661,3.92109658,187.73,187.72,6.08985035]
[1761927384866,102.3,187.75,187.72,6.08985035]
[1761927385166,102.3,187.75,187.73,0.67]
[1761927385545,102.3,187.75,187.74,5.32651539]
[1761927385768,106.21890913,187.75,187.74,5.99651539]
[1761927386779,102.3,187.75,187.74,5.99651539]
[1761927388142,102.3,187.75,187.74,8.12484241]
[1761927392771,75.11691607,187.75,187.74,17.9136701]
[1761927392955,0.68,187.84,187.74,17.9136701]
[1761927392956,39.30818496,187.83,187.77,20.592]
[1761927393155,3.91850098,187.82,187.81,2.12832702]
[1761927393372,3.91850098,187.82,187.8,2.12832702]
[1761927393562,3.91850098,187.81,187.8,2.12832702]
[1761927393756,39.30818496,187.83,187.8,2.12832702]
[1761927393757,3.91850098,187.82,187.8,2.79832702]
[1761927393954,3.91850098,187.81,187.8,0.67]
[1761927394145,39.30818496,187.83,187.8,0.67]
[1761927394472,3.9169538,187.82,187.81,5.32453011]
[1761927394663,3.9169538,187.82,187.81,6.03453011]
[1761927395072,39.30818496,187.83,187.81,8.16285713]
[1761927395755,39.30818496,187.83,187.81,7.45285713]
[1761927395957,6.72681651,187.82,187.77,20.592]
[1761927396172,6.04681651,187.81,187.77,5.32562644]
[1761927396373,0.68,187.81,187.77,7.45395346]
[1761927396677,0.68,187.8,187.77,7.45395346]
[1761927396872,4.59766608,187.81,187.77,7.45395346]
[1761927397058,0.68,187.81,187.77,7.45395346]
[1761927397376,0.68,187.81,187.77,5.32562644]
[1761927397580,2.80832702,187.81,187.77,5.32562644]
[1761927397875,2.12832702,187.79,187.76,5.32590492]
[1761927398074,0.68,187.78,187.76,5.32590492]
[1761927398779,6.04508305,187.77,187.72,5.32708288]
[1761927399078,2.12832702,187.76,187.72,5.32708288]
[1761927399250,2.80832702,187.77,187.72,7.4554099]
[1761927399679,0.68,187.76,187.72,7.4554099]
[1761927400748,0.68,187.76,187.71,18.64563499]
[1761927400978,0.68,187.76,187.71,5.32736668]
[1761927401276,2.12832702,187.72,187.7,0.1]
[1761927401481,2.12832702,187.71,187.7,0.1]
[1761927401770,39.91284336,187.76,187.7,0.1]
[1761927401771,2.12832702,187.72,187.7,0.1]
[1761927402180,6.72418872,187.71,187.7,0.1]
[1761927405464,6.72904584,187.71,187.7,0.1]
[1761927406752,12.05641252,187.71,187.7,0.1]
[1761927407195,9.9280855,187.71,187.7,0.1]
[1761927407691,12.05641252,187.71,187.7,0.1]
[1761927407902,27.32104584,187.71,187.7,0.1]
[1761927408271,6.72904584,187.71,187.7,0.1]
[1761927409896,12.05641252,187.71,187.7,0.1]
[1761927410093,22.12956335,187.71,187.7,0.1]
[1761927410297,42.72156335,187.71,187.7,0.1]
[1761927410484,32.93273566,187.71,187.7,0.1]
[1761927412093,30.80440864,187.71,187.7,0.1]
[1761927412278,32.93273566,187.71,187.7,0.1]
[1761927413408,46.23913123,187.71,187.7,0.1]
[1761927413590,59.55754793,187.71,187.62,5.32969373]
[1761927413796,2.12832702,187.63,187.61,5.4301449]
[1761927414184,2.12832702,187.64,187.61,5.4301449]
[1761927414706,2.80832702,187.64,187.61,5.4301449]
[1761927414912,2.12832702,187.64,187.61,5.4301449]
[1761927415275,2.12832702,187.64,187.61,6.1401449]
[1761927416008,2.12832702,187.64,187.61,0.81]
[1761927416502,2.12832702,187.65,187.61,0.81]
[1761927416690,2.12832702,187.64,187.61,0.1]
[1761927416882,2.12832702,187.64,187.61,0.81]
[1761927417298,2.80832702,187.64,187.61,5.43020132]
[1761927417881,2.80832702,187.63,187.61,5.43020132]
[1761927418083,2.12832702,187.63,187.61,5.43020132]
[1761927418394,2.80832702,187.63,187.61,5.43020132]
[1761927418590,2.12832702,187.63,187.61,5.43020132]
[1761927419201,2.80832702,187.64,187.61,5.43020132]
[1761927419510,4.01055813,187.64,187.61,5.43020132]
[1761927419695,4.01055813,187.63,187.61,0.1]
[1761927420207,3.33055813,187.63,187.61,0.1]
[1761927420396,0.68,187.62,187.61,0.1]
[1761927420997,3.33055813,187.63,187.61,0.1]
[1761927421514,102.3,187.65,187.61,0.81]
[1761927421515,106.31055813,187.65,187.61,0.81]
[1761927421686,3.90284093,187.64,187.61,0.81]
[1761927422011,4.01055813,187.64,187.61,5.43013991]
[1761927422781,102.3,187.63,187.61,5.43013991]
[1761927422987,102.3,187.63,187.61,6.14013991]
[1761927423193,102.3,187.63,187.61,5.43013991]
[1761927423389,102.3,187.63,187.61,0.1]
[1761927423390,102.98,187.63,187.61,0.1]
[1761927423596,4.01055813,187.62,187.61,0.1]
[1761927423795,7.9114415,187.62,187.61,0.1]
[1761927425014,3.33055813,187.62,187.61,0.1]
[1761927425196,24.62255813,187.64,187.61,0.1]
[1761927425515,3.33055813,187.65,187.61,0.77]
[1761927425716,0.7,187.64,187.61,5.4301943]
[1761927425889,0.7,187.65,187.61,6.1001943]
[1761927426216,4.03055813,187.65,187.61,6.1001943]
[1761927426388,3.33055813,187.64,187.61,5.4301943]
[1761927426590,4.03055813,187.64,187.61,5.4301943]
[1761927426891,3.33055813,187.65,187.61,19.42570999]
[1761927427202,4.03055813,187.66,187.61,19.42570999]
[1761927427387,4.03055813,187.66,187.61,0.1]
[1761927427388,3.33055813,187.63,187.61,0.1]
[1761927427589,3.33055813,187.62,187.61,0.1]
[1761927428212,4.03055813,187.62,187.61,0.1]
[1761927428999,7.92648721,187.62,187.61,0.1]
[1761927429216,13.25640939,187.62,187.61,0.1]
[1761927430600,13.54073253,187.62,187.61,0.1]
[1761927430799,23.32956022,187.62,187.61,0.1]
[1761927431000,20.592,187.59,187.52,0.1]
[1761927431203,3.33055813,187.53,187.52,0.1]
[1761927431408,8.95750892,187.53,187.52,0.1]
[1761927433308,14.28998905,187.53,187.52,0.1]
[1761927434604,14.57431219,187.53,187.52,0.1]
[1761927435826,28.24407095,187.53,187.52,0.1]
[1761927436211,39.04724326,187.53,187.52,0.1]
[1761927436409,39.04724326,187.53,187.37,20.592]
[1761927436646,8.25750892,187.39,187.33,0.1]
[1761927437301,0.7,187.39,187.33,0.1]
[1761927437500,8.95750892,187.39,187.33,0.1]
[1761927437703,8.54183206,187.39,187.35,0.67]
[1761927437902,0.7,187.39,187.33,0.77]
[1761927438108,21.292,187.42,187.37,5.33675007]
[1761927438420,0.28432314,187.43,187.38,15.61618527]
[1761927438612,102.3,187.44,187.39,0.67]
[1761927438923,8.25750892,187.42,187.39,0.67]
[1761927439105,8.25750892,187.42,187.38,14.94618527]
[1761927439304,8.25750892,187.42,187.38,15.61618527]
[1761927440234,8.25750892,187.42,187.38,10.27943642]
[1761927440724,8.25750892,187.45,187.39,8.92750892]
[1761927441030,0.7,187.46,187.39,8.92750892]
[1761927441202,8.25750892,187.44,187.39,8.92750892]
[1761927441402,8.25750892,187.44,187.41,5.33589456]
[1761927441920,0.7,187.49,187.42,8.92750892]
[1761927442121,8.25750892,187.47,187.42,8.92750892]
[1761927442304,8.25750892,187.48,187.42,8.25750892]
[1761927442500,8.25750892,187.48,187.43,0.67]
[1761927442715,110.55750892,187.47,187.43,0.67]
[1761927444036,8.25750892,187.44,187.38,10.27943642]
[1761927444341,106.8700396,187.46,187.38,10.27943642]
[1761927444342,102.3,187.43,187.38,9.60943642]
[1761927444642,8.25750892,187.41,187.38,9.60943642]
[1761927445138,8.25750892,187.39,187.38,9.60943642]
[1761927445518,12.7831941,187.39,187.38,9.60943642]
[1761927445846,0.66,187.39,187.38,9.60943642]
[1761927446008,8.91750892,187.39,187.38,9.60943642]
[1761927446209,4.52689684,187.39,187.38,9.60943642]
[1761927446537,14.60004767,187.39,187.38,8.88943642]
[1761927446703,12.12440576,187.39,187.38,8.88943642]
[1761927446908,12.12251292,187.39,187.38,8.88943642]
[1761927447319,3.865004,187.39,187.38,8.88943642]
[1761927447517,20.592,187.41,187.38,8.88943642]
[1761927447713,8.25750892,187.41,187.38,9.59943642]
[1761927447908,8.25750892,187.39,187.38,8.88943642]
[1761927448406,8.25750892,187.4,187.38,8.88943642]
[1761927448613,8.25750892,187.41,187.38,9.59943642]
[1761927448813,3.8630314,187.4,187.38,9.59943642]
[1761927449015,3.8630314,187.4,187.38,8.88943642]
[1761927449221,25.92705925,187.44,187.38,14.2261242]
[1761927449550,8.25750892,187.42,187.38,8.88943642]
[1761927449748,12.12033616,187.41,187.38,8.88943642]
[1761927450044,25.92715684,187.44,187.38,14.93605907]
[1761927450213,8.25750892,187.42,187.38,14.93605907]
[1761927450535,12.12043796,187.41,187.38,9.59943642]
[1761927450739,3.86292904,187.4,187.38,9.59943642]
[1761927451435,3.86292904,187.4,187.39,0.71]
[1761927451735,8.25750892,187.41,187.38,9.59943642]
[1761927452334,8.25750892,187.42,187.39,0.71]
[1761927452523,8.25750892,187.42,187.38,8.88943642]
[1761927452720,8.25750892,187.42,187.38,9.59943642]
[1761927452954,12.1218772,187.41,187.38,8.88943642]
[1761927453247,3.86422448,187.4,187.38,8.88943642]
[1761927454144,3.86422448,187.4,187.38,9.57943642]
[1761927454317,8.25750892,187.39,187.38,8.88943642]
[1761927454522,12.12233517,187.39,187.38,8.88943642]
[1761927456143,3.86482625,187.39,187.38,8.88943642]
[1761927456340,8.25750892,187.41,187.38,14.91618527]
[1761927456647,8.25750892,187.41,187.38,9.57943642]
[1761927457034,8.25750892,187.42,187.39,0.69]
[1761927457252,3.86204133,187.41,187.39,0.69]
[1761927457747,8.25750892,187.4,187.38,8.88943642]
[1761927457939,8.25750892,187.4,187.38,9.57943642]
[1761927458342,8.25750892,187.4,187.38,14.91615831]
[1761927458833,5.99509722,187.44,187.38,14.91615831]
[1761927459150,8.25750892,187.42,187.38,14.91615831]
[1761927459335,8.25750892,187.42,187.38,14.22615831]
[1761927459534,30.66515083,187.46,187.38,8.88943642]
[1761927459535,8.25750892,187.4,187.38,8.88943642]
[1761927459737,12.12302504,187.39,187.38,8.88943642]
[1761927459939,12.78302504,187.39,187.38,8.88943642]
[1761927460136,18.11948909,187.39,187.38,8.88943642]
[1761927461361,9.86198017,187.39,187.38,8.88943642]
[1761927461562,18.11948909,187.39,187.38,8.88943642]
[1761927461738,18.40381223,187.39,187.38,8.88943642]
[1761927462057,28.19263992,187.39,187.38,8.88943642]
[1761927462264,31.67370421,187.39,187.38,8.88943642]
[1761927463239,21.88487652,187.39,187.38,8.88943642]
[1761927463442,28.19263992,187.39,187.38,8.88943642]
[1761927463777,31.67370421,187.39,187.38,8.88943642]
[1761927466067,7.34658041,187.39,187.38,8.88943642]
[1761927466254,3.86551612,187.39,187.38,14.91618527]
[1761927466460,3.86551612,187.39,187.38,9.57943642]
[1761927466846,3.86551612,187.39,187.38,8.88943642]
[1761927467040,12.12302504,187.39,187.38,8.88943642]
[1761927467867,18.11948909,187.39,187.38,8.88943642]
[1761927468362,21.60907574,187.39,187.38,8.88943642]
[1761927468583,18.11948909,187.39,187.38,8.88943642]
[1761927469087,31.68222657,187.39,187.38,8.88943642]
[1761927470352,23.42471765,187.39,187.38,8.88943642]
[1761927470653,27.84251979,187.39,187.38,8.88943642]
[1761927470849,31.69950666,187.39,187.38,8.88943642]
[1761927471443,36.10002871,187.39,187.38,8.88943642]
[1761927472857,31.03950666,187.39,187.38,8.88943642]
[1761927473576,31.69950666,187.39,187.38,8.88943642]
[1761927474078,20.96635583,187.39,187.38,8.88943642]
[1761927474291,20.592,187.35,187.33,0.1]
[1761927474474,15.62989178,187.34,187.33,0.1]
[1761927474955,15.91421492,187.34,187.33,0.1]
[1761927475991,26.36304261,187.34,187.33,0.1]
[1761927476292,26.36304261,187.34,187.17,26.71314955]
[1761927476293,9.78882769,187.29,187.13,8.25750892]
[1761927476574,20.592,187.24,187.19,0.69]
[1761927476779,3.88279621,187.23,187.19,14.28966119]
[1761927476983,3.88279621,187.22,187.2,0.69]
[1761927477275,3.88279621,187.21,187.2,0.69]
[1761927478555,3.88279621,187.21,187.2,6.03188034]
[1761927479252,11.76604286,187.26,187.2,6.03188034]
[1761927479458,23.7970122,187.3,187.21,8.94750892]
[1761927479459,3.89715396,187.25,187.21,8.94750892]
[1761927479660,3.89715396,187.24,187.21,0.69]
[1761927479953,3.89715396,187.23,187.22,0.69]
[1761927480367,12.15466288,187.23,187.22,0.69]
[1761927480892,3.89715396,187.23,187.22,0.69]
[1761927481056,3.89715396,187.23,187.22,6.03130968]
[1761927481256,3.89715396,187.23,187.22,0.69]
[1761927482292,3.89715396,187.23,187.22,6.03130968]
[1761927483397,3.89715396,187.23,187.22,0.69]
[1761927483984,3.89715396,187.23,187.21,5.34157161]
[1761927484169,5.45075756,187.24,187.21,5.34157161]
[1761927484371,3.8930724,187.23,187.21,5.34157161]
[1761927484567,107.75075756,187.26,187.22,5.45075756]
[1761927484568,102.3,187.26,187.22,5.45075756]
[1761927484879,102.3,187.26,187.23,5.45075756]
[1761927485187,102.3,187.26,187.23,6.11075756]
[1761927485386,3.89297174,187.25,187.21,5.34157161]
[1761927485587,3.89297174,187.24,187.22,0.66]
[1761927485794,3.89297174,187.23,187.22,0.66]
[1761927486377,3.89311468,187.23,187.22,0.66]
[1761927486682,3.89311468,187.23,187.22,6.00130968]
[1761927487396,107.75075756,187.26,187.22,6.00130968]
[1761927487596,102.3,187.26,187.23,0.66]
[1761927488182,102.3,187.26,187.23,6.11075756]
[1761927488387,102.3,187.26,187.24,6.11075756]
[1761927488601,102.3,187.26,187.25,5.34045393]
[1761927488786,102.3,187.26,187.25,6.00045393]
[1761927489899,106.1957672,187.26,187.25,0.66]
[1761927490279,102.3,187.26,187.25,0.66]
[1761927490701,102.3,187.26,187.25,6.00045393]
[1761927490899,102.3,187.26,187.25,11.45121149]
[1761927491112,102.3,187.26,187.25,6.00045393]
[1761927491605,102.3,187.26,187.25,11.45121149]
[1761927491805,102.3,187.32,187.25,24.80234633]
[1761927491993,106.19605793,187.31,187.29,5.45075756]
[1761927492189,106.19605793,187.31,187.28,5.45075756]
[1761927492190,102.3,187.31,187.28,5.45075756]
[1761927492403,102.3,187.31,187.3,5.45075756]
[1761927492580,107.75075756,187.37,187.31,5.33874325]
[1761927492784,3.89757316,187.36,187.31,11.44950081]
[1761927492983,3.89757316,187.36,187.32,0.66]
[1761927493406,107.75075756,187.37,187.32,0.66]
[1761927494493,5.45075756,187.33,187.29,0.66]
[1761927494805,5.45075756,187.34,187.29,0.66]
[1761927495607,5.45075756,187.36,187.3,5.45075756]
[1761927495907,5.45075756,187.34,187.29,0.66]
[1761927496488,5.45075756,187.35,187.3,5.33902829]
[1761927496797,3.89992997,187.34,187.3,5.33902829]
[1761927497005,3.89992997,187.34,187.3,5.99902829]
[1761927497202,9.35068753,187.34,187.3,0.66]
[1761927497395,2.13834451,187.33,187.3,0.66]
[1761927497719,2.13834451,187.31,187.24,0.66]
[1761927497883,2.13834451,187.28,187.24,0.66]
[1761927498918,2.13834451,187.27,187.24,0.66]
[1761927499116,2.13834451,187.26,187.19,13.35514753]
[1761927499282,5.45068561,187.24,187.21,0.66]
[1761927499802,5.45068561,187.25,187.21,0.66]
[1761927500417,5.45068561,187.26,187.21,0.66]
[1761927500716,108.33924111,187.3,187.21,0.66]
[1761927500893,5.45068561,187.27,187.22,18.6945839]
[1761927501215,5.45068561,187.26,187.22,18.6945839]
[1761927501510,5.45068561,187.26,187.22,19.3545839]
[1761927501686,5.45068561,187.27,187.23,0.66]
[1761927502406,5.45068561,187.25,187.21,5.341595]
[1761927502581,5.45068561,187.24,187.21,5.341595]
[1761927502782,5.45068561,187.26,187.22,0.66]
[1761927503196,5.45068561,187.24,187.21,5.341595]
[1761927503593,5.45068561,187.24,187.21,6.001595]
[1761927504196,5.45068561,187.23,187.21,6.001595]
[1761927504816,5.45068561,187.24,187.21,6.001595]
[1761927505200,5.34034793,187.26,187.21,0.66]
[1761927505408,5.45068561,187.22,187.19,0.66]
[1761927505586,106.90439538,187.25,187.05,51.99999999]
[1761927505587,5.45068561,187.21,187.17,5.34271729]
[1761927505787,5.45068561,187.21,187.15,13.35825789]